Cogmind - Beta 14 @@@ ROGUE MODE // 2024.11.18 @ 18:57:11 Player: Zeldest Result: Destroyed by G-47 Trooper with Particle Gun Performance ------------- Evolutions (2) 1000 Regions Visited (4) 800 Robots Destroyed (34) 170 Value Destroyed (751) 751 Prototype IDs (0) 0 Alien Tech Used (0) 0 Bonus (11) 11 TOTAL SCORE: 2732 Bonus ------- High Alert Combat Kills 11 Cogmind --------- Core Integrity 0/550 Matter 300/300 Energy 222/240 System Corruption 0% Temperature Cool (47) Movement Walking (114) Location -8/Materials Parts ------- > --- POWER (1) -------- Nuclear Core > --- PROPULSION (6) --- Aluminum Leg Aluminum Leg Carbon-fiber Leg Carbon-fiber Leg VSS Leg > --- UTILITY (2) ------ Targeting Computer > --- WEAPON (2) ------- Spread Laser Axe > --- INVENTORY (5) ---- Light Nuclear Core Heat Sink Improved Heat Sink Improved Terrain Scanner Peak State ------------ > --- POWER ------------ Nuclear Core > --- PROPULSION ------- Aluminum Leg Aluminum Leg Carbon-fiber Leg Carbon-fiber Leg VSS Leg > --- UTILITY ---------- Targeting Computer > --- WEAPON ----------- Spread Laser Axe > --- INVENTORY -------- Light Nuclear Core Heat Sink Improved Heat Sink Improved Terrain Scanner [Rating: 21] Favorites ----------- Power Ion Engine Engine Ion Engine Power Core Micro Nuclear Core Propulsion Light Treads Treads Light Treads Leg Aluminum Leg Flight Unit Flight Unit Utility Small Storage Unit Device Improved Terrain Scanner Storage Small Storage Unit Processor Targeting Computer Weapon Light Assault Rifle Energy Gun Spread Laser Energy Cannon Ion Cannon Ballistic Gun Light Assault Rifle Launcher Grenade Launcher Slashing Weapon Axe Build | -11 -10 -9 -9 -8 ------- Run | Yrd Mat Mat Min Mat Slots Evolved 4 | . . 2 . 2 Power . | . . . . . Propulsion 4 | . . 2 . 2 Utility . | . . . . . Weapon . | . . . . . Parts Attached 35 | 7 4 . 3 21 Power 5 | 1 1 . 2 1 Engine 3 | 1 1 . 1 . Core 2 | . . . 1 1 Reactor . | . . . . . Propulsion 13 | 2 2 . 1 8 Treads 5 | 2 . . . 3 Leg 5 | . . . . 5 Wheel . | . . . . . Hover . | . . . . . Flight 3 | . 2 . 1 . Utility 6 | 2 . . . 4 Device 4 | 1 . . . 3 Storage 1 | 1 . . . . Processor 1 | . . . . 1 Hackware . | . . . . . Protection . | . . . . . Artifact . | . . . . . Weapon 11 | 2 1 . . 8 Energy Gun 3 | . . . . 3 Energy Cannon 1 | . . . . 1 Ballistic Gun 5 | 2 . . . 3 Ballistic Cannon . | . . . . . Launcher 1 | . 1 . . . Special Weapon . | . . . . . Impact Weapon . | . . . . . Slashing Weapon 1 | . . . . 1 Piercing Weapon . | . . . . . Special Melee Weapon . | . . . . . Unidentified Prototypes . | . . . . . Parts Lost 15 | . 2 . 2 11 Power 3 | . 1 . 1 1 Propulsion 5 | . . . 1 4 Utility 3 | . 1 . . 2 Weapon 4 | . . . . 4 Highest Loss Streak 5 | . 2 . 2 5 To Critical Strikes . | . . . . . Average Slot Usage (%) 58 | . 83 33 32 53 Engine 3 | . 8 11 1 . Core 4 | . . . 9 7 Treads 9 | . 25 . . 2 Leg 7 | . . . . 19 Flight 8 | . 2 22 22 3 Device 5 | . 7 . . 6 Storage 4 | . 12 . . . Processor 1 | . . . . 3 Energy Gun 1 | . . . . 4 Ballistic Gun 6 | . 13 . . 4 Launcher 3 | . 11 . . . Peak Build Rating 21 | 9 9 3 9 21 Average Rating 9 | 7 7 3 8 13 On Entrance 4 | . 9 3 3 9 Naked Turns . | . . . . . Heaviest Build 15 | 13 15 3 6 13 Greatest Support 62 | 40 40 8 10 62 Greatest Overweight (x) 3 | . . . . 3 Average Overweight (x) . | . . . . . Largest Inventory Capacity 8 | 8 8 5 5 5 Average Capacity 6 | 7 7 5 5 5 Most Carried 8 | 4 8 5 5 5 Average Carried 4 | 1 6 4 5 4 Final Capacity 8 | 8 5 5 5 5 Final Carried 5 | 4 4 5 5 4 Class Distribution -------------------- 85% | Mutant 14% | Scavenger-Mutant Dominant Class ---------------- Mutant | -10/Materials Mutant | -9/Materials Mutant | -9/Mines Mutant | -8/Materials Resources | -11 -10 -9 -9 -8 ----------- Run | Yrd Mat Mat Min Mat Matter Collected 862 | 320 59 10 165 308 Remotely . | . . . . . Salvage Created 823 | 296 78 . . 449 Parts 66 | 34 14 . . 18 Haulers Intercepted . | . . . . . Recyclers Shooed . | . . . . . Parts Field Recycled . | . . . . . Retrieved Matter . | . . . . . Parts Self-Destructed . | . . . . . Prevented . | . . . . . Kills | -11 -10 -9 -9 -8 ------- Run | Yrd Mat Mat Min Mat Combat Hostiles Destroyed 18 | . 8 . . 10 Guns 8 | . . . . 8 Cannons 2 | . . . . 2 AOE 8 | . 8 . . . Classes Destroyed 10 | 3 3 . . 4 Worker 5 | 4 1 . . . Tunneler 8 | 8 . . . . Recycler 1 | 1 . . . . Watcher 2 | . 2 . . . Swarmer 6 | . 6 . . . Grunt 7 | . 2 . . 5 Duelist 1 | . . . . 1 Sentry 2 | . . . . 2 Hunter 1 | . . . . 1 Heavy 1 | . . . . 1 Best Kill Streak 5 | 2 5 . . 4 Combat Bots Only 5 | . 5 . . 4 Max Kills in Single Turn 4 | 1 4 . . 1 Gunslinging . | . . . . . Exploded 4 | . 4 . . . Melee . | . . . . . Uniques/NPCs Destroyed . | . . . . . Combat | -11 -10 -9 -9 -8 -------- Run | Yrd Mat Mat Min Mat Hostile Shots Fired 155 | . 8 7 . 140 Missed 49 | . 1 4 . 44 Damage Taken 2219 | . 486 47 45 1641 Core 697 | . 117 14 10 556 Absorbed by Shields . | . . . . . Core Remaining (%) 82 | 100 53 . 94 . Volleys Fired 116 | 31 16 . . 69 Largest 2 | 2 1 . . 2 Hottest 88 | 40 30 . . 88 Shots Fired 152 | 62 16 . . 74 Gun 128 | 62 . . . 66 Cannon 8 | . . . . 8 Launcher 16 | . 16 . . . Special . | . . . . . Kinetic 98 | 62 . . . 36 Thermal 38 | . . . . 38 Explosive 16 | . 16 . . . Electromagnetic . | . . . . . Robot Hit Streak 18 | 9 3 . . 18 Robot Miss Streak 2 | 2 1 . . 2 Penetration Max . | . . . . . Secondary Targets . | . . . . . Shots Hit Robots 115 | 46 3 . . 66 Core Hits 81 | 24 18 . . 39 Critical Kills . | . . . . . Critical Parts Destroyed . | . . . . . Critical Strikes 1 | . . . . 1 Burn 1 | . . . . 1 Melee Attacks . | . . . . . Impact . | . . . . . Slashing . | . . . . . Piercing . | . . . . . Sneak Attacks . | . . . . . Combat Hostiles . | . . . . . Follow-up Attacks . | . . . . . Damage Inflicted 2039 | 384 531 . . 1124 Guns 1385 | 384 . . . 1001 Cannons 115 | . . . . 115 Explosions 522 | . 522 . . . Melee . | . . . . . Ramming 17 | . 9 . . 8 Kinetic 951 | 384 . . . 567 Thermal 561 | . 12 . . 549 Explosive 510 | . 510 . . . Electromagnetic . | . . . . . Impact . | . . . . . Slashing . | . . . . . Piercing . | . . . . . Highest Corruption 8 | . 8 . . . Average Corruption 8 | . 8 . . . Corruption Purged . | . . . . . Corruption Blocked . | . . . . . Effects 6 | . 6 . . . Message Errors 1 | . 1 . . . Matter Fused 3 | . 3 . . . Energy Discharges 1 | . 1 . . . Data Loss (minor) 1 | . 1 . . . Overload Shots . | . . . . . Overflow Damage 11 | . 11 . . . Projectiles . | . . . . . Explosions 11 | . 11 . . . Melee . | . . . . . Knockbacks . | . . . . . Impact . | . . . . . Kinetic . | . . . . . Secondary . | . . . . . Self-Inflicted Damage 197 | . 197 . . . Shots 6 | . 6 . . . Rammed 3 | . 3 . . . Targets Rammed 5 | . 3 . . 2 Kicked 2 | . . . . 2 Crushed . | . . . . . Highest Temperature 61 | . 39 . . 61 Average Temperature 23 | . 16 . . 25 Received Heat Transfer 630 | . 117 18 . 495 Siege Activations . | . . . . . Robots Corrupted . | . . . . . Combat Hostiles . | . . . . . Parts Fried . | . . . . . Impact Corruptions . | . . . . . Robots Melted . | . . . . . Combat Hostiles . | . . . . . Parts Melted 3 | . . . . 3 Heat Transferred 1189 | . 50 . . 1139 Parts Sabotaged . | . . . . . Parts Stolen . | . . . . . Parts Stripped . | . . . . . Power Chain Reactions . | . . . . . Alert | -11 -10 -9 -9 -8 ------- Run | Yrd Mat Mat Min Mat Peak Influence 425 | 65 425 120 42 303 Initial 94 | . 42 94 42 8 Average 146 | 27 299 109 24 178 Maximum Alert Level 2 | . 2 . . 1 Low Security (%) 66 | 100 29 100 100 46 Level 1 22 | . 26 . . 53 Level 2 11 | . 44 . . . Level 3 . | . . . . . Level 4 . | . . . . . Level 5 . | . . . . . High Security . | . . . . . Max Security . | . . . . . Squads Dispatched 2 | . . . . 2 Investigation . | . . . . . Extermination . | . . . . . Reinforcement 2 | . . . . 2 Assault . | . . . . . Garrison . | . . . . . Intercept . | . . . . . Searches Triggered . | . . . . . Construction Impeded . | . . . . . Haulers Reinforced . | . . . . . Active Scanning Responses . | . . . . . Cargo Convoy Interrupts . | . . . . . Stealth | -11 -10 -9 -9 -8 --------- Run | Yrd Mat Mat Min Mat Distress Signals 3 | . . 1 . 2 Communications Jammed . | . . . . . Distress Signals . | . . . . . Times Spotted 37 | . 7 5 . 25 Peak Tracking Total 8 | . 2 6 . 8 Tactical Retreats 5 | . . . . 5 Traps | -11 -10 -9 -9 -8 ------- Run | Yrd Mat Mat Min Mat Traps Triggered 1 | . . . 1 . Indirectly . | . . . . . Trap Hack Attempts . | . . . . . Triggered . | . . . . . Disarmed . | . . . . . Reprogrammed . | . . . . . Reused . | . . . . . Traps Extracted . | . . . . . Installed . | . . . . . Triggered . | . . . . . Machines | -11 -10 -9 -9 -8 ---------- Run | Yrd Mat Mat Min Mat Machines Disabled 2 | . 2 . . . Max in Single Turn 1 | . 1 . . . Machines Repaired . | . . . . . Machines Dismantled . | . . . . . Machines Sabotaged . | . . . . . Overloaded Fab Kills . | . . . . . Hacking | -11 -10 -9 -9 -8 --------- Run | Yrd Mat Mat Min Mat Machines Accessed 6 | . 2 2 1 1 Terminals 5 | . 2 2 . 1 Fabricators . | . . . . . Repair Stations . | . . . . . Recycling Units . | . . . . . Scanalyzers . | . . . . . Garrison Access . | . . . . . Total Hacks 13 | . 4 5 1 3 Successful 8 | . 1 3 1 3 Failed 5 | . 3 2 . . Catastrophic . | . . . . . Database Lockouts . | . . . . . Manual 12 | . 4 5 . 3 Terminals 12 | . 4 5 . 3 Fabricators . | . . . . . Repair Stations . | . . . . . Recycling Units . | . . . . . Scanalyzers . | . . . . . Garrison Access . | . . . . . Terminal Hacks 2 | . . . 1 1 Part Schematic 1 | . . . . 1 Open Door 1 | . . . 1 . Fabricator Hacks . | . . . . . Repair Station Hacks . | . . . . . Recycling Unit Hacks . | . . . . . Scanalyzer . | . . . . . Garrison Access Hacks . | . . . . . Unauthorized Hacks 6 | . 1 3 . 2 Terminals 6 | . 1 3 . 2 Assimilate 3 | . . 2 . 1 Botnet 3 | . 1 1 . 1 Fabricators . | . . . . . Repair Stations . | . . . . . Recycling Units . | . . . . . Scanalyzers . | . . . . . Garrison Access . | . . . . . Data Cores Recovered . | . . . . . Used . | . . . . . Hacking Detections 3 | . 2 1 . . Full Trace Events 1 | . 1 . . . Feedback Events . | . . . . . Feedback Blocked . | . . . . . Robot Schematics Acquired . | . . . . . Robots Built . | . . . . . Authchips . | . . . . . Time . | . . . . . Total Robot Build Rating . | . . . . . Part Schematics Acquired 1 | . . . . 1 Parts Built . | . . . . . Authchips . | . . . . . Time . | . . . . . Total Part Build Rating . | . . . . . Parts Repaired . | . . . . . Time . | . . . . . Parts Recycled . | . . . . . Recycled Matter . | . . . . . Retrieved Matter . | . . . . . Retrieved Components . | . . . . . Parts Scanalyzed . | . . . . . Part Schematics Acquired . | . . . . . Parts Damaged . | . . . . . Bothacking | -11 -10 -9 -9 -8 ------------ Run | Yrd Mat Mat Min Mat Used RIF Installer . | . . . . . Robots Hacked . | . . . . . Non-combat . | . . . . . Combat . | . . . . . Robot Hacks Applied . | . . . . . Relay Couplers Released . | . . . . . Fabnet Peak Effective % . | . . . . . Robots Rewired . | . . . . . Allies Hacked . | . . . . . Hacks Repelled . | . . . . . Allies | -11 -10 -9 -9 -8 -------- Run | Yrd Mat Mat Min Mat Total Allies 5 | . . 1 3 1 Largest Group 3 | . . 1 3 1 Highest-Rated Group 78 | . . 10 78 10 Highest-Rated Ally 31 | . . 10 31 10 Total Orders . | . . . . . Ally Attacks . | . . . . . Total Damage . | . . . . . Kills . | . . . . . Allies Corrupted . | . . . . . Allies Melted . | . . . . . Intel | -11 -10 -9 -9 -8 ------- Run | Yrd Mat Mat Min Mat Robot Analysis Total . | . . . . . Derelict Logs Recovered 2 | . . . 2 . Drone Launches . | . . . . . Drone Recoveries . | . . . . . Exploration | -11 -10 -9 -9 -8 ------------- Run | Yrd Mat Mat Min Mat Turns Passed 1613 | 399 409 85 234 486 Spaces Moved 1450 | 194 295 166 575 220 Core 17 | 6 . . . 11 Treads 412 | 188 200 . . 24 Legs 91 | . . . . 91 Wheels . | . . . . . Hover . | . . . . . Flight 930 | . 95 166 575 94 Fastest Speed 37 | 50 37 37 37 37 Average Speed 77 | 156 120 37 37 88 Slowest Speed 200 | 160 160 37 40 200 Overloaded Moves . | . . . . . Propulsion Burnouts . | . . . . . Robots Hopped 16 | . 4 5 7 . Cave-ins Triggered 1 | . 1 . . . Exploration Rate (%) 38 | 11 56 17 96 14 Regions Visited 4 Branch Regions 1 Pre-discovered Areas . | . . . . . Known Exits Taken 1 | . . . 1 . Unknown Exits Taken 3 | 1 1 1 . . Scrap Searched 4 | . . . 4 . Spaces Dug . | . . . . . Terrain Destroyed 120 | . 118 . . 2 Melee . | . . . . . Projectile 2 | . . . . 2 AOE 118 | . 118 . . . Terrain Rammed . | . . . . . Walls Destroyed . | . . . . . Machines Disabled . | . . . . . Actions | -11 -10 -9 -9 -8 --------- Run | Yrd Mat Mat Min Mat Total 1773 | 238 331 183 588 433 Wait 151 | . . 22 17 112 Move 1414 | 193 286 155 560 220 Hop 16 | . 4 5 7 . Pick Up 22 | 7 8 1 . 6 Fast Attach 19 | 4 . . 2 13 Attach 12 | 3 3 . . 6 Detach 1 | . 1 . . . Swap 4 | . 1 . 1 2 Drop 13 | . 9 . 1 3 Fire 116 | 31 16 . . 69 Melee . | . . . . . Ram . | . . . . . Kick 2 | . . . . 2 Crush 3 | . 3 . . . Escape Stasis . | . . . . . Rewire . | . . . . . Trap . | . . . . . Miscellaneous . | . . . . . Route ------- -11/Scrapyard -10/Materials (discovered 2 exits: *Mat / [*Min]) -9/Materials -9/Mines (discovered 2 exits: *Mat x2) -8/Materials (discovered 1 exit: Fac) History --------- Turn | Location | Event 9 | -11/Scrapyard | Discovered new exit (range 14) 400 | -11/Scrapyard | Entered Materials 401 | -10/Materials | Build established: Mutant 473 | -10/Materials | Discovered new exit (range 11) 613 | -10/Materials | Crushed by falling debris 791 | -10/Materials | Discovered new exit (range 15) 809 | -10/Materials | Entered another Materials area 809 | -9/Materials | Evolved 2 slots: Propulsion x2 891 | -9/Materials | Discovered new exit (range 9) 894 | -9/Materials | Entered Mines 926 | -9/Mines | Met a Derelict who couldn't figure out how to use a Trap Extractor 939 | -9/Mines | Identified exit to Materials 1021 | -9/Mines | Received a Rocket Launcher from a helpful Derelict 1021 | -9/Mines | Discovered exit to Materials (range 7) 1024 | -9/Mines | Received a Mining Laser from a helpful Derelict 1128 | -9/Mines | Entered Materials 1128 | -8/Materials | Evolved 2 slots: Propulsion x2 1129 | -8/Materials | Identified exit to Factory 1258 | -8/Materials | Lost 3 parts (2n1w) 1333 | -8/Materials | Core integrity fell below 50% 1362 | -8/Materials | Lost 5 parts (1p1n1u2w) 1393 | -8/Materials | Core integrity fell below 20% 1614 | -8/Materials | Destroyed by G-47 Trooper with Particle Gun Last Messages --------------- 01440_ Acquired Targeting Computer. 01443_ Acquired 10 matter. 01458_ Acquired Spread Laser. 01491_ K-01 Serf collects debris. 01493_ Y-45 Defender destroyed. 01494_ K-01 Serf collects debris. 01496_ Acquired 13 matter. 01499_ K-01 Serf collects debris. 01511_ Y-45 Defender destroyed. 01516_ Dropped Assault Rifle. 01516_ Acquired 19 matter. 01520_ K-01 Serf collects debris. 01540_ U-05 Engineer builds a Door. 01566_ Kicked K-01 Serf out of the way. 01574_ Acquired Axe. 01588_ Kicked W-25 Informer out of the way. 01607_ Hvy. Assault Rifle severed. 01611_ L-31 Rogue destroyed. 01612_ K-01 Serf collects debris. 01614_ Acquired 13 matter. Map ----- +----------------------------------------------------+ | ??????????????????????????????????????????????? | | ??????????????????????????????????????????????? | | ??????????????????????????????????????????????? | | ??????????????????????????????????????????????? | | ??????????????????????????????????????????????? | | ??????????????????????????????????????????????? | | ??????????????????????????????????????????????? | | ??????????????????????????????????????????????? | | ??????????????????????????????????????????????? | | ???????????????????????? ?????????????????????? | | ???????????????????????? ?????????????????????? | | ???????????????????????? ?????????????????????? | | ???????????????????????? ?????????????????????? | | ???????????????????????? ?????????????????????? | | ???????????????????????? ?????????????????????? | | ???????????????????????? ?????????????????????? | | ???????????????????????# #????????????????????? | | ???????????????????????# #????????????????????? | | ???????? ????????????# #????????????????????? | | ???????? ????????????# #????????????????????? | | ???????# ????######### #????????????????????? | | ???????# #???# g # #????????????????????? | | ???????# #????#[ "" # #????????????????????? | | ???????# #????# """!k #????????????????????? | | ???????# #????# R"g# #????????????????????? | | ???????# #????# """@# #????????????????????? | | ???????# #????# /[# #????????????????????? | | ???????+ #????######## #????????????????????? | | ???????# #????? #?#%#????????????????????? | | ???????# #????? #?# #?########???????????? | | # ????## ##????? ### ### #???????????? | | # ??# #????? # # #???????????? | | # # !#######+## # """ #???????????? | | # + *!%*! % + """ #???????????? | | # # [#######+## # """ #???????????? | | ??????# #????? # # / / "??????? | | ??????### ###?????"" ## ############ ???????? | | ????????# #??????""" ## #???????????????????? | | ????????# #??????""" ## #???????????????????? | | ????????# #????? ## #???????????????????? | | ????????# #????? ## #???????????????????? | | ????????# #?????####### #???????????????????? | | ????????# #???????????# #???????????????????? | | ??????###+#######????? ???????????????????? | | ??????# #????? ???????????????????? | | ??????# ##### ??????????????????? | | ??????# + ??????????????????? | | ??????# #????? #?????????????????? | | ??????# #????? ??????????????????? | | ??????# % #????? ???????????????????? | +----------------------------------------------------+ Best States ------------- Heat Dissipation 45 Energy Generation 15 Energy Capacity 250 Matter Stores 300 Matter Capacity 300 Sight Range 16 Terrain Scan Range 16 Terrain Scan Density 10 Evasion (%) 62 Targeting Accuracy 5 Recoil Reduction 2 Item Schematics ----------------- VTOL Module | -8/Materials | Hacked Robot Schematics ------------------ None Fabricated ------------ Nothing Alien Tech Used ----------------- None Achievements -------------- None Challenges ------------ None Game ------ Seed AlloyHellfireUnit Manual? 0 Play Time 00:19:02 Cumulative 49.0 hours Start 2024.11.18 @ 18:35:58 End 2024.11.18 @ 18:57:11 Sessions 1 Manual Loads 0 Difficulty Rogue Special Mode None Game No. 91 Rogue 91 Adventurer 0 Explorer 0 Win Type - Total 0 Types 0/0/0/0/0/0/0/0/0 Lore% 15 Gallery% 34 Achievement% 32 Wizard Run 0 Options --------- Layout 0 ASCII 0 Keyboard 1 Movement Numpad Keybinds 0 Fullscreen 1 Font 18/SmallcapsGlow Map View 76x50 Zoom Use 0% Tactical HUD 1 Map Filters NONE Filters NONE Steam 1 RUN: f0285e32-e0e3-45a2-ac62-9f8983d82f4d